fUST/lending_fUST_20260225
["ID","MTS","AMOUNT","RATE_DAILY","PERIOD"]
[406629270,1771995032756,-500.0,0.00025086,2]
[406629271,1771995032765,-500.0,0.00025086,2]
[406629272,1771995032775,-500.0,0.00025086,2]
[406629273,1771995032784,-280.59309675,0.00025086,2]
[406629274,1771995032799,-219.40690325,0.00025086,2]
[406629275,1771995032809,-500.0,0.00025086,2]
[406629276,1771995032819,-88.91646056,0.00025086,2]
[406629769,1771995046305,-1934.52299945,0.00024964,2]
[406629770,1771995046325,-3687.65321075,0.00024964,2]
[406629771,1771995046710,-269.34922615,0.00024964,2]
[406629772,1771995046751,-1517.31186027,0.00024964,2]
[406629773,1771995046761,-411.08353944,0.00025086,2]
[406629774,1771995046771,-500.0,0.00025086,2]
[406629775,1771995046780,-353.05504398,0.00025086,2]
[406629777,1771995148022,500.0,0.0004189,120]
[406629781,1771995338541,449.6,0.000125,2]
[406629782,1771995446507,500.0,0.00041889,120]
[406629784,1771995745845,500.0,0.00041889,120]
[406629791,1771995991047,400.0,0.00041889,120]
[406629792,1771995991350,400.0,0.00041889,120]
[406629793,1771995991649,400.0,0.00041889,120]
[406629794,1771995991941,400.0,0.00041889,120]
[406629795,1771995992228,400.0,0.00041889,120]
[406629796,1771995992527,400.0,0.00041889,120]
[406629797,1771995992812,400.0,0.00041889,120]
[406629798,1771995993423,400.0,0.00041889,120]
[406629799,1771995993483,400.0,0.00041889,120]
[406629800,1771995993800,400.0,0.00041889,120]
[406629801,1771995994034,400.0,0.00041889,120]
[406629802,1771995994258,400.0,0.00041889,120]
[406629803,1771995994537,400.0,0.00041889,120]
[406629804,1771995994818,400.0,0.00041889,120]
[406629805,1771995995103,400.0,0.00041889,120]
[406629806,1771995995397,400.0,0.00041889,120]
[406629807,1771995995994,400.0,0.00041889,120]
[406629808,1771995996387,400.0,0.00041889,120]
[406629809,1771995996605,400.0,0.00041889,120]
[406629810,1771995996882,400.0,0.00041889,120]
[406629811,1771996043136,-473.67327033,0.00024811,2]
[406629812,1771996047220,500.0,0.00041889,120]
[406629851,1771996238595,-664.88208927,0.00024811,2]
[406629852,1771996238605,-309.9335169,0.00024811,2]
[406629853,1771996238614,-150.0,0.00025394,120]
[406629854,1771996238624,-1190.95957917,0.0002621,2]
[406630178,1771996243811,-1953.42327526,0.0002621,2]
[406630180,1771996243820,-492.8756736,0.00026474,2]
[406630182,1771996243829,-875.34719632,0.00026474,2]
[406630184,1771996243839,-200.0,0.00027,120]
[406630186,1771996243848,-150.0,0.00027397,5]
[406630188,1771996243857,-1138.5553596,0.00027773,2]
[406630190,1771996243866,-502.56984192,0.00027788,2]
[406630192,1771996243875,-150.75,0.00027805,2]
[406630194,1771996243884,-500.0,0.00027805,2]
[406630196,1771996243893,-500.0,0.00027805,2]
[406630198,1771996243903,-334.96346646,0.00027805,2]
[406630200,1771996243912,-500.0,0.00027805,2]
[406630202,1771996243921,-302.0637416,0.00027805,2]
[406630204,1771996243930,-500.0,0.00027805,2]
[406630206,1771996243939,-500.0,0.00027805,2]
[406630208,1771996243948,-500.0,0.00027805,2]
[406630210,1771996243957,-500.0,0.00027805,2]
[406630212,1771996243966,-500.0,0.00027805,2]
[406630214,1771996243975,-288.68612785,0.00027805,2]
[406630216,1771996243985,-500.0,0.00027805,2]
[406630218,1771996243994,-500.0,0.00027805,2]
[406630220,1771996244003,-500.0,0.00027805,2]
[406630222,1771996244012,-500.0,0.00027805,2]
[406630224,1771996244021,-500.0,0.00027805,2]
[406630226,1771996244030,-3300.73407376,0.00027806,6]
[406630228,1771996244039,-250.0,0.00027945,5]
[406630229,1771996244048,-150.0,0.00028,5]
[406630232,1771996244057,-153.16957801,0.00028193,5]
[406630233,1771996244067,-158.89884542,0.00028193,5]
[406630235,1771996244076,-309.9335169,0.00028391,2]
[406630238,1771996244087,-213.96560153,0.00028493,5]
[406630239,1771996244096,-250.0,0.00028548,5]
[406630241,1771996244105,-350.0,0.00029096,5]
[406630243,1771996244114,-3366.18899179,0.00029403,10]
[406630245,1771996244129,-450.0,0.00029644,5]
[406630247,1771996244138,-206.0,0.0003,2]
[406630249,1771996244147,-381.11686671,0.0003,30]
[406630251,1771996244156,-744.54351979,0.00030048,2]
[406630253,1771996244165,-608.80256229,0.00030192,5]
[406630255,1771996244174,-256.40256646,0.00030698,2]
[406630257,1771996244183,-150.0,0.00030698,2]
[406630259,1771996244192,-245.526,0.00030731,27]
[406630261,1771996244202,-171.31704839,0.00030735,2]
[406630263,1771996244214,-967.23831121,0.00030735,2]
[406630265,1771996244223,-166.18462047,0.00030753,2]
[406630267,1771996244234,-260.88289135,0.00030787,2]
[406630268,1771996244246,-518.58159756,0.00030787,2]
[406630269,1771996244256,-273.58550061,0.00030899,2]
[406630363,1771996345421,151.0,0.00041889,120]
[406630364,1771996345777,151.0,0.00041889,120]
[406630365,1771996346816,151.0,0.00041889,120]
[406630366,1771996346879,151.0,0.00041889,120]
[406630367,1771996347032,151.0,0.00041889,120]
[406630368,1771996347394,151.0,0.00041889,120]
[406630369,1771996347593,151.0,0.00041889,120]
[406630370,1771996347871,151.0,0.00041889,120]
[406630371,1771996348140,151.0,0.00041889,120]
[406630372,1771996348409,151.0,0.00041889,120]
[406630373,1771996348447,500.0,0.00041889,120]
[406630374,1771996348683,151.0,0.00041889,120]
[406630375,1771996348959,151.0,0.00041889,120]
[406630376,1771996349230,151.0,0.00041889,120]
[406630377,1771996349508,217.005844,0.00041889,120]
[406630381,1771996646516,500.0,0.00041888,120]
[406630408,1771996946791,500.0,0.00041888,120]
[406630417,1771997249472,500.0,0.00041889,120]
[406630479,1771997437634,-255.86840901,0.00013699,2]
[406630483,1771997438049,-41.24579844,0.00013699,2]
[406630484,1771997438059,-159.19653967,0.00024207,4]
[406630485,1771997438069,-507.14981412,0.00025,2]
[406630486,1771997438078,-248.58,0.000251,2]
[406630487,1771997438087,-156.0,0.00025105,2]
[406630488,1771997438097,-161.0,0.000253,2]
[406630489,1771997438107,-161.0,0.000253,3]
[406630490,1771997438117,-1200.0,0.00027086,2]
[406630491,1771997438126,-300.0,0.00027087,2]
[406630492,1771997438136,-300.0,0.00027087,2]
[406630493,1771997438145,-300.0,0.00027087,2]
[406630494,1771997438155,-300.0,0.00027087,2]
[406630495,1771997438164,-208.69953126,0.00027088,2]
[406630496,1771997438174,-2143.20064099,0.00027088,2]
[406630497,1771997438185,-5257.07729347,0.00027088,2]
[406630498,1771997438196,-266.55262864,0.00027088,2]
[406630499,1771997438206,-1138.5553599,0.00028274,2]
[406630500,1771997438215,-619.867034,0.00028274,2]
[406630501,1771997438224,-557.551,0.00029,120]
[406630502,1771997438233,-475.0,0.00029,120]
[406630503,1771997438243,-475.0,0.00029,120]
[406630504,1771997438252,-475.0,0.00029,120]
[406630505,1771997438261,-157.65295547,0.00029,120]
[406630564,1771997440145,-317.34704453,0.00029,120]
[406630566,1771997440154,-449.98600077,0.00029,120]
[406630997,1771997445730,-25.01399923,0.00029,120]
[406630998,1771997445742,-475.0,0.00029,120]
[406630999,1771997445752,-475.0,0.00029,120]
[406631000,1771997445761,-475.0,0.00029,120]
[406631001,1771997445774,-408.45166103,0.00029,120]
[406631002,1771997445785,-66.54833897,0.00029,120]
[406631003,1771997445795,-475.0,0.00029,120]
[406631004,1771997445804,-475.0,0.00029,120]
[406631005,1771997445815,-475.0,0.00029,120]
[406631006,1771997445824,-475.0,0.00029,120]
[406631007,1771997445834,-475.0,0.00029,120]
[406631008,1771997445844,-475.0,0.00029,120]
[406631009,1771997445854,-475.0,0.00029,120]
[406631010,1771997445863,-475.0,0.00029,120]
[406631011,1771997445872,-475.0,0.00029,120]
[406631012,1771997445881,-475.0,0.00029,120]
[406631013,1771997445891,-475.0,0.00029,120]
[406631014,1771997445900,-475.0,0.00029,120]
[406631015,1771997445909,-475.0,0.00029,120]
[406631016,1771997445919,-475.0,0.00029,120]
[406631017,1771997445928,-419.52,0.00029,120]
[406631018,1771997445938,-161.0,0.000291,20]
[406631019,1771997445948,-161.0,0.000291,15]
[406631020,1771997445958,-133.12530506,0.000291,7]
[406631243,1771997549496,1260815.07413782,0.00041889,120]
[406631333,1771998416122,-276.52534847,0.00024211,120]
[406631385,1771998631987,-800.18591242,0.00024953,2]
[406631388,1771998631999,-4059.0787064,0.00024953,2]
[406631390,1771998632008,-2462.28511219,0.00026535,2]
[406632006,1771998638032,-1989.66260329,0.00026535,2]
[406632009,1771998638044,-3329.28612084,0.00026535,2]
[406632011,1771998638053,-322.58901732,0.00026635,2]
[406632013,1771998638063,-308.6956375,0.00026832,2]
[406632014,1771998638072,-200.0,0.00027,120]
[406632017,1771998638082,-500.0,0.000271,7]
[406632019,1771998638091,-289.459564,0.00027645,60]
[406632021,1771998638101,-229.19012424,0.00027812,2]
[406632023,1771998638112,-2998.84676946,0.00027812,2]
[406632026,1771998638122,-66.44687496,0.00028729,2]
[406632253,1771998640529,-101.55312504,0.00028729,2]
[406632254,1771998640539,-565.35557638,0.00028892,2]
[406632321,1771999625098,-158.0,0.00025205,14]
[406632322,1771999625119,-200.0,0.00027,120]
[406632323,1771999625139,-115.67327033,0.00027397,5]
[406632355,1771999831997,-150.0,0.00027397,5]
[406632357,1771999832007,-168.348758,0.00027508,2]
[406632372,1771999838231,-323.651242,0.00027508,2]
[406632373,1771999838242,-309.9335169,0.00027509,2]
[406632374,1771999838251,-3294.693353,0.00027509,2]
[406632375,1771999838261,-160.7144936,0.00027509,2]
[406632376,1771999838270,-473.6732703,0.00027509,2]
[406632377,1771999838279,-348.2923312,0.00027945,5]
[406632378,1771999838288,-150.0,0.00028,5]
[406632379,1771999838298,-500.0,0.000281,7]
[406632380,1771999838307,-250.0,0.00028548,5]
[406632381,1771999838316,-350.0,0.00029096,5]
[406632382,1771999838326,-27.87469494,0.000291,7]
[406632383,1771999838335,-161.0,0.000291,10]
[406632384,1771999838344,-161.0,0.000291,4]
[406632385,1771999838353,-161.0,0.000291,5]
[406632386,1771999838363,-161.0,0.000291,2]
[406632387,1771999838373,-161.0,0.000291,3]
[406632388,1771999838382,-475.0,0.000291,120]
[406632389,1771999838391,-475.0,0.000291,120]
[406632390,1771999838400,-475.0,0.000291,120]
[406632391,1771999838410,-475.0,0.000291,120]
[406632392,1771999838419,-475.0,0.000291,120]
[406632393,1771999838428,-475.0,0.000291,120]
[406632394,1771999838437,-475.0,0.000291,120]
[406632395,1771999838446,-475.0,0.000291,120]
[406632396,1771999838455,-475.0,0.000291,120]
[406632397,1771999838464,-475.0,0.000291,120]
[406632398,1771999838473,-475.0,0.000291,120]
[406632399,1771999838487,-475.0,0.000291,120]
[406632400,1771999838496,-475.0,0.000291,120]
[406632401,1771999838505,-475.0,0.000291,120]
[406632402,1771999838514,-475.0,0.000291,120]
[406632403,1771999838526,-387.39675654,0.00029144,2]
[406632404,1771999838536,-182.99928338,0.00029169,2]
[406632405,1771999838545,-502.56984192,0.00029227,2]
[406632406,1771999838556,-500.0,0.00029227,2]
[406632407,1771999838565,-500.0,0.00029227,2]
[406632408,1771999838574,-500.0,0.00029227,2]
[406632409,1771999838583,-500.0,0.00029227,2]
[406632410,1771999838593,-403.21803119,0.00029227,2]
[406632411,1771999838602,-500.0,0.00029227,2]
[406632412,1771999838612,-209.40437684,0.00029227,2]
[406632413,1771999838622,-539.40053101,0.00029227,2]
[406632414,1771999838805,-217.15233878,0.00029227,2]
[406632415,1771999838814,-225.18697532,0.00029227,2]
[406632416,1771999838825,-233.51889341,0.00029227,2]
[406632417,1771999838836,-242.15909246,0.00029227,2]
[406632418,1771999838846,-251.11897888,0.00029227,2]
[406632419,1771999838855,-260.4103811,0.00029227,2]
[406632420,1771999838869,-270.0455652,0.00029227,2]
[406632421,1771999838879,-280.03725112,0.00029227,2]
[406632422,1771999838889,-290.39862941,0.00029227,2]
[406632423,1771999838898,-301.1433787,0.00029227,2]
[406632424,1771999838908,-250.0,0.00029227,2]
[406632425,1771999838917,-500.0,0.00029227,2]
[406632426,1771999838929,-250.0,0.00029227,2]
[406632427,1771999838939,-500.0,0.00029227,2]
[406632428,1771999838948,-250.0,0.00029227,2]
[406632429,1771999838958,-554.73644858,0.00029227,2]
[406632430,1771999838969,-250.0,0.00029227,2]
[406632431,1771999838979,-250.0,0.00029227,2]
[406632432,1771999838989,-250.0,0.00029227,2]
[406632433,1771999838999,-250.0,0.00029227,2]
[406632434,1771999839009,-250.0,0.00029227,2]
[406632435,1771999839019,-250.0,0.00029227,2]
[406632436,1771999839030,-250.0,0.00029227,2]
[406632437,1771999839039,-250.0,0.00029227,2]
[406632438,1771999839049,-508.17400363,0.00029245,2]
[406632439,1771999839060,-500.0,0.00029263,2]
[406632440,1771999839070,-542.84855928,0.00029263,2]
[406632441,1771999839080,-417.0,0.00029382,2]
[406632442,1771999839090,-254.51481176,0.00029388,2]
[406632443,1771999839099,-168.0,0.0002952,2]
[406632444,1771999839110,-187.130861,0.00029562,2]
[406632445,1771999839120,-450.0,0.00029644,5]
[406632446,1771999839130,-383.2350971,0.00029657,2]
[406632447,1771999839139,-417.0,0.00029681,7]
[406632448,1771999839149,-245.526,0.00029846,24]
[406632449,1771999839159,-158.0,0.0003,30]
[406632450,1771999839168,-1967.37,0.0003,30]
[406632451,1771999839178,-744.54351979,0.00030067,2]
[406632452,1771999839188,-161.0,0.000301,2]
[406632453,1771999839197,-608.0,0.000301,120]
[406632454,1771999839207,-707.4506856,0.00030149,120]
[406632455,1771999839216,-608.80256229,0.00030192,5]
[406632456,1771999839225,-420.0,0.00030201,7]
[406632457,1771999839235,-416.0,0.00030289,2]
[406632458,1771999839247,-430.0,0.00030359,2]
[406632459,1771999839256,-728.0,0.00030359,2]
[406632460,1771999839265,-387.39675654,0.00030397,2]
[406632461,1771999839274,-150.0,0.00030479,2]
[406632462,1771999839283,-150.0,0.00030479,2]
[406632463,1771999839292,-150.0,0.00030479,2]
[406632464,1771999839302,-500.0,0.00030479,2]
[406632465,1771999839311,-228.98463338,0.0003049,2]
[406632466,1771999839320,-150.0,0.00030534,2]
[406632467,1771999839329,-150.0,0.00030534,2]
[406632468,1771999839338,-500.0,0.00030534,2]
[406632469,1771999839347,-416.0,0.00030554,2]
[406632470,1771999839357,-200.0,0.00030589,2]
[406632471,1771999839366,-173.48000028,0.00030589,2]
[406632472,1771999839376,-500.0,0.00030589,2]
[406632473,1771999839385,-500.0,0.00030643,2]
[406632474,1771999839395,-534.80805163,0.00030698,2]
[406632475,1771999839404,-162.78865067,0.000307,2]
[406632476,1771999839413,-519.64299261,0.00030787,2]
[406632477,1771999839422,-416.0,0.00030836,2]
[406632478,1771999839432,-416.0,0.00030956,7]
[406632479,1771999839441,-2011.72,0.0003098,10]
[406632480,1771999839450,-2363.67,0.0003098,10]
[406632481,1771999839460,-199.52951333,0.0003098,2]
[406632482,1771999839470,-30053.12223749,0.0003099,2]
[406632483,1771999839482,-3614.7421166,0.00030999,15]
[406632484,1771999839491,-735.1454555,0.00031002,2]
[406632485,1771999839500,-285.0,0.00031127,2]
[406632486,1771999839509,-415.0,0.00031206,7]
[406632487,1771999839519,-415.0,0.00031233,2]
[406632488,1771999839528,-415.0,0.00031256,7]
[406632489,1771999839537,-415.0,0.00031329,2]
[406632490,1771999839546,-415.0,0.00031452,2]
[406632491,1771999839556,-415.0,0.00031554,2]
[406632492,1771999839565,-337.95435416,0.00031622,2]
[406632493,1771999839574,-174.90846892,0.00031639,2]
[406632494,1771999839584,-387.39675654,0.0003165,2]
[406632495,1771999839593,-5000.0,0.000317,2]
[406632496,1771999839602,-511.7059,0.000317,2]
[406632497,1771999839611,-511.7059,0.000317,3]
[406632498,1771999839620,-511.7059,0.000317,4]
[406632499,1771999839629,-331.2,0.000317,2]
[406632500,1771999839639,-199.52951333,0.00031718,2]
[406632501,1771999839648,-199.5109134,0.00031718,2]
[406632502,1771999839657,-997.64756665,0.00031729,2]
[406632503,1771999839666,-13415.51634771,0.00031739,2]
[406632504,1771999839679,-828.83063129,0.00031739,2]
[406632834,1771999843545,-4145.01304763,0.00031739,2]
[406632836,1771999843558,-210941.69758914,0.00031739,2]
[406632838,1771999843568,-500.0,0.0003175,2]
[406632840,1771999843577,-415.0,0.00031774,2]
[406632842,1771999843587,-244.69012403,0.00031781,48]
[406632844,1771999843597,-164.0331232,0.00031782,2]
[406632846,1771999843606,-744.54351979,0.000318,7]
[406632848,1771999843615,-6046.6,0.000318,2]
[406632850,1771999843624,-161.0,0.000318,30]
[406632852,1771999843633,-153.16957801,0.00031846,10]
[406632853,1771999843642,-158.89884542,0.00031846,10]
[406632854,1771999843651,-415.0,0.0003185,2]
[406632855,1771999843661,-199.52951333,0.0003199,2]
[406632856,1771999843670,-511.7059,0.00031999,2]
[406632857,1771999843679,-511.7059,0.00031999,2]
[406632858,1771999843688,-511.7059,0.00031999,3]
[406632859,1771999843697,-199.9982,0.00031999,4]
[406632860,1771999843706,-511.7059,0.00031999,2]
[406632861,1771999843715,-511.7059,0.00031999,3]
[406632862,1771999843724,-59223.22371134,0.00032,2]
[406632863,1771999843733,-201.86738514,0.00032,2]
[406632864,1771999843742,-7117.75097512,0.00032,2]
[406632865,1771999843751,-415.0,0.00032016,2]
[406632866,1771999843759,-415.0,0.00032077,2]
[406632867,1771999843768,-415.0,0.00032094,2]
[406632868,1771999843778,-415.0,0.00032119,2]
[406632869,1771999843787,-415.0,0.00032135,2]
[406632870,1771999843796,-415.0,0.00032207,2]
[406632871,1771999843806,-174.90846888,0.00032279,2]
[406632872,1771999843815,-250.2551,0.000323,120]
[406632873,1771999843825,-206.76937,0.000323,120]
[406632874,1771999843834,-415.0,0.000323,7]
[406632875,1771999843844,-420.0,0.0003232,2]
[406632876,1771999843853,-600.0,0.00032373,30]
[406632878,1771999843863,-3838.27386606,0.00032596,19]
[406632879,1771999843872,-1000.0,0.00032877,120]
[406632881,1771999843882,-174.90846888,0.0003292,2]
[406632883,1771999843891,-285.0,0.00033025,5]
[406632884,1771999843900,-199.52951333,0.0003319,2]
[406632885,1771999843909,-198.19705502,0.000332,117]
[406632886,1771999843919,-487.0,0.000332,2]
[406632887,1771999843928,-487.0,0.000332,2]
[406632888,1771999843938,-487.0,0.000332,2]
[406632889,1771999843947,-487.0,0.000332,2]
[406632890,1771999843956,-487.0,0.000332,2]
[406632891,1771999843966,-487.0,0.000332,2]
[406632892,1771999843975,-487.0,0.000332,2]
[406632893,1771999843985,-487.0,0.000332,2]
[406632894,1771999843994,-487.0,0.000332,2]
[406632895,1771999844004,-487.0,0.000332,2]
[406632896,1771999844013,-487.0,0.000332,2]
[406632897,1771999844023,-487.0,0.000332,2]
[406632898,1771999844032,-487.0,0.000332,2]
[406632899,1771999844041,-914.22,0.000332,2]
[406632900,1771999844051,-430.0,0.00033359,2]
[406632901,1771999844061,-563.151,0.00033359,2]
[406632902,1771999844070,-766.038006,0.000334,15]
[406632903,1771999844080,-174.90846888,0.0003356,2]
[406632904,1771999844090,-329.39871009,0.00033597,2]
[406632905,1771999844099,-156.0,0.00033873,2]
[406632906,1771999844109,-399.05902666,0.00033933,2]
[406632907,1771999844119,-106428.22693261,0.00033943,2]
[406632908,1771999844129,-559489.84836824,0.00033943,2]
[406632909,1771999844138,-151.0,0.00034,14]
[406632910,1771999844147,-180.12196458,0.00034004,2]
[406632911,1771999844156,-4229.45442761,0.00034193,23]
[406632913,1771999844166,-174.90846888,0.000342,2]
[406632914,1771999844175,-183.47661454,0.00034202,2]
[406632915,1771999844184,-1795.76561997,0.00034276,2]
[406632916,1771999844193,-6046.6,0.000343,2]
[406632917,1771999844203,-516.70385896,0.00034312,3]
[406632918,1771999844212,-358.80996364,0.00034843,7]
[406632919,1771999844222,-285.0,0.00034922,7]
[406632920,1771999844232,-155.0,0.0003526,7]
[406632921,1771999844242,-720.0,0.0003561,30]
[406632922,1771999844251,-1000.0,0.00035616,120]
[406632923,1771999844260,-466.6483687,0.00035616,7]
[406632924,1771999844270,-187.130861,0.00035784,2]
[406632925,1771999844279,-4909.61955824,0.00035789,27]
[406632926,1771999844289,-276.42894509,0.0003598,2]
[406632927,1771999844298,-291.0,0.00036,30]
[406632928,1771999844308,-222.0,0.00036328,2]
[406632929,1771999844318,-366.0,0.00036338,2]
[406632930,1771999844328,-430.0,0.00036359,2]
[406632931,1771999844337,-7967.98280799,0.000364,2]
[406632932,1771999844347,-829287.1731,0.0003643,2]
[406632933,1771999844356,-157.94,0.000365,7]
[406632934,1771999844366,-166.29,0.000365,7]
[406632935,1771999844375,-6046.6,0.000365,2]
[406632936,1771999844385,-200.0,0.00036656,41]
[406632937,1771999844395,-165.0,0.00036712,91]
[406632938,1771999844405,-285.0,0.0003682,30]
[406632939,1771999844414,-10000.0,0.000375,120]
[406632940,1771999844424,-1193.6306,0.00037703,2]
[406632941,1771999844433,-2016.7604,0.00037703,2]
[406632942,1771999844443,-1452.8396,0.00037703,2]
[406632943,1771999844453,-1095.629387,0.0003793,15]
[406632944,1771999844462,-353.0,0.00038,120]
[406632945,1771999844472,-457243.0572,0.00038192,2]
[406632946,1771999844484,-2016.7604,0.00038331,2]
[406632947,1771999844494,-331.98517409,0.00038356,2]
[406632948,1771999844506,-1000.0,0.00038356,120]
[406632949,1771999844515,-151.0,0.00038356,120]
[406632950,1771999844526,-151.0,0.00038356,120]
[406632951,1771999844536,-151.0,0.00038356,120]
[406632952,1771999844545,-151.0,0.00038356,120]
[406632953,1771999844556,-151.0,0.00038356,120]
[406632954,1771999844565,-151.0,0.00038356,120]
[406632955,1771999844574,-151.0,0.00038356,120]
[406632956,1771999844584,-151.0,0.00038356,120]
[406632957,1771999844593,-151.0,0.00038356,120]
[406632958,1771999844602,-151.0,0.00038356,120]
[406632959,1771999844611,-151.0,0.00038356,120]
[406632960,1771999844621,-151.0,0.00038356,120]
[406632961,1771999844630,-151.0,0.00038356,120]
[406632962,1771999844639,-270.615278,0.00038356,120]
[406632963,1771999844648,-585.01210911,0.00038641,2]
[406632964,1771999844657,-1193.6306,0.00038645,2]
[406632965,1771999844666,-1452.8396,0.00038646,2]
[406632966,1771999844676,-6046.6,0.000387,2]
[406632967,1771999844685,-285.0,0.00038717,30]
[406632968,1771999844694,-851.09,0.000388,7]
[406632969,1771999844704,-3757.50117189,0.00038834,2]
[406632970,1771999844713,-2016.7604,0.0003896,2]
[406632971,1771999844722,-6017.70842328,0.00038982,30]
[406632972,1771999844731,-1501.12223313,0.00039,30]
[406632973,1771999844741,-194.71843394,0.00039,2]
[406632974,1771999844750,-1000.0,0.00039,30]
[406632975,1771999844759,-15401.27726333,0.00039,2]
[406632976,1771999844768,-250.77078804,0.00039159,120]
[406632977,1771999844777,-864.0,0.00039171,60]
[406632978,1771999844786,-200.0,0.00039204,48]
[406632979,1771999844795,-519.64299261,0.00039234,2]
[406632980,1771999844804,-1009.21350585,0.00039494,15]
[406632981,1771999844814,-1452.8396,0.00039588,2]
[406632982,1771999844824,-258.11651258,0.0003966,2]
[406632983,1771999844833,-37000.0,0.0003978,20]
[406632984,1771999844842,-28486.09311136,0.0003978,25]
[406632985,1771999844851,-25322.58024437,0.000399,30]
[406632986,1771999844859,-500.0,0.0004,2]
[406632987,1771999844868,-227.11553223,0.0004,120]
[406632988,1771999844878,-239.11018883,0.0004,30]
[406632989,1771999844888,-167.99752871,0.0004,120]
[406632990,1771999844897,-202.87258483,0.0004,30]
[406632991,1771999844906,-230.94828689,0.0004,120]
[406632992,1771999844915,-264.82741611,0.0004,120]
[406632993,1771999844924,-210.41617118,0.0004,2]
[406632994,1771999844933,-1000.0,0.0004,30]
[406632995,1771999844942,-500.0,0.0004,120]
[406632996,1771999844951,-320.88,0.0004,6]
[406632997,1771999844960,-2427.0,0.0004,30]
[406632998,1771999844969,-9830.46989224,0.0004,120]
[406632999,1771999844978,-158.38708532,0.0004,30]
[406633000,1771999844988,-744.54351979,0.0004,3]
[406633001,1771999844997,-1000.0,0.0004,10]
[406633002,1771999845006,-36010.77502139,0.0004,10]
[406633003,1771999845016,-3861.35842319,0.0004,30]
[406633004,1771999845025,-158.94086695,0.0004,30]
[406633005,1771999845034,-477.57,0.0004,120]
[406633006,1771999845043,-209.45,0.0004,120]
[406633007,1771999845052,-260.42,0.0004,120]
[406633008,1771999845062,-523.84970272,0.00040002,30]
[406633009,1771999845071,-573.6549,0.000401,120]
[406633010,1771999845081,-273.85819832,0.000401,120]
[406633011,1771999845091,-500.0,0.00040135,30]
[406633012,1771999845100,-500.0,0.00040162,30]
[406633013,1771999845110,-500.0,0.00040177,30]
[406633014,1771999845120,-175.0,0.00040262,30]
[406633015,1771999845129,-500.0,0.00040283,30]
[406633016,1771999845138,-6046.6,0.000403,2]
[406633017,1771999845147,-500.0,0.00040315,30]
[406633018,1771999845157,-201.2883618,0.00040364,7]
[406633019,1771999845166,-500.0,0.00040368,30]
[406633020,1771999845175,-500.0,0.00040374,30]
[406633021,1771999845185,-160.0,0.00040431,3]
[406633022,1771999845194,-171.0,0.00040452,30]
[406633023,1771999845203,-500.0,0.00040462,30]
[406633024,1771999845212,-500.0,0.00040464,30]
[406633025,1771999845221,-500.0,0.00040513,30]
[406633026,1771999845231,-6518.50504271,0.00040579,30]
[406633027,1771999845240,-500.0,0.00040585,30]
[406633028,1771999845250,-285.0,0.00040615,120]
[406633029,1771999845260,-323.0,0.00040629,60]
[406633030,1771999845270,-652.0,0.00040643,2]
[406633031,1771999845279,-150.0,0.00040643,2]